bitfinex/quotes_SOLUSD_20250226
["timestamp","ask_amount","ask_price","bid_price","bid_amount"]
[1740602886261,0.14216157,135.89,135.82,121.4132214]
[1740602886930,0.14216157,135.89,135.79,10.2]
[1740602887132,0.14216157,135.92,135.79,131.6132214]
[1740602887531,3.65345187,135.84,135.79,131.6132214]
[1740602888050,3.77439525,135.85,135.79,214.0132214]
[1740602888532,0.03,135.9,135.79,214.0132214]
[1740602888852,0.03,135.9,135.8,1.54570745]
[1740602889350,0.03,135.9,135.8,205.35892885]
[1740602889555,0.03,135.9,135.8,204.8132214]
[1740602889844,0.03,135.9,135.81,1.0]
[1740602890044,0.03,135.9,135.82,1.54517576]
[1740602890357,0.03,135.9,135.82,205.35839716]
[1740602890527,0.03,135.9,135.82,203.8132214]
[1740602890929,0.42648471,135.95,135.82,203.8132214]
[1740602891340,0.28432314,135.95,135.82,203.8132214]
[1740602892045,0.14216157,135.89,135.82,203.8132214]
[1740602892254,0.28432314,135.89,135.82,121.4132214]
[1740602892624,0.14216157,135.89,135.82,121.4132214]
[1740602892824,3.77051185,135.84,135.82,121.4132214]
[1740602893030,3.77051185,135.84,135.8,10.18]
[1740602893953,0.14216157,135.91,135.8,10.18]
[1740602894136,0.14216157,135.91,135.8,146.98]
[1740602894457,0.14216157,135.95,135.8,146.98]
[1740602894651,0.14216157,135.95,135.8,229.38]
[1740602894955,3.71464419,135.87,135.8,229.38]
[1740602895473,5.9248012,135.98,135.87,136.8]
[1740602895644,3.76274218,136.17,135.99,1.0]
[1740602895847,3.73314342,136.12,136.0,11.94367821]
[1740602896156,4.82411914,136.11,136.0,136.8]
[1740602896447,4.82411914,136.11,136.0,219.2]
[1740602896650,124.22,136.24,136.03,0.2202]
[1740602896855,4.84118895,136.16,136.04,1.54262745]
[1740602897037,4.84118895,136.16,136.05,10.18]
[1740602897231,4.84118895,136.16,136.06,1.54281252]
[1740602897456,4.84118895,136.16,136.06,220.74281252]
[1740602897638,4.84118895,136.16,136.06,219.2]
[1740602898250,4.84118895,136.16,136.06,136.8]
[1740602900456,4.84118895,136.16,136.06,138.34299494]
[1740602900647,0.8987107,136.1,136.06,138.34299494]
[1740602900848,0.8987107,136.1,136.06,136.8]
[1740602901045,0.8987107,136.1,136.06,219.2]
[1740602901359,0.8987107,136.1,136.07,1.54255491]
[1740602901658,0.8987107,136.1,136.06,219.2]
[1740602902959,0.8987107,136.1,136.06,136.8]
[1740602904864,0.8987107,136.1,136.04,146.98]
[1740602907348,0.8987107,136.1,136.03,0.063]
[1740602907349,1.33256995,136.13,136.03,136.863]
[1740602908140,0.14216157,136.12,136.03,136.863]
[1740602909445,0.14216157,136.12,136.03,0.063]
[1740602910567,0.14216157,136.12,136.03,136.863]
[1740602911154,7.57556995,136.13,136.03,136.863]
[1740602911354,4.84118895,136.16,136.04,1.54295866]
[1740602911664,9.0566107,136.2,136.04,220.74295866]
[1740602911864,0.14216157,136.19,136.04,219.2]
[1740602912065,9.0566107,136.2,136.04,219.2]
[1740602912458,0.14216157,136.19,136.04,219.2]
[1740602912848,13.71883581,136.2,136.05,1.54280081]
[1740602913047,13.71883581,136.2,136.05,220.74280081]
[1740602913268,13.71883581,136.2,136.05,219.2]
[1740602913771,13.71883581,136.2,136.06,1.54251081]
[1740602913970,13.71883581,136.2,136.06,219.2]
[1740602915077,13.71883581,136.2,136.07,1.54259506]
[1740602915253,13.71883581,136.2,136.07,230.90259506]
[1740602915454,13.71883581,136.2,136.07,229.36]
[1740602915656,0.14216157,136.19,136.07,229.36]
[1740602917157,13.71883581,136.2,136.07,229.36]
[1740602917557,10.30216157,136.19,136.07,136.8]
[1740602917761,10.30216157,136.19,136.03,136.863]
[1740602918261,10.30216157,136.19,136.03,138.40598327]
[1740602918454,10.30216157,136.19,136.03,136.863]
[1740602919757,82.9,136.18,136.03,0.0001]
[1740602919966,1.5181,136.17,135.99,136.8]
[1740602920376,2.88133213,136.17,135.99,136.8]
[1740602920556,6.5243,136.15,135.93,219.2]
[1740602920758,0.14216157,136.13,135.93,219.2]
[1740602920958,0.14216157,136.11,135.93,219.2]
[1740602921755,0.14216157,136.09,135.93,219.2]
[1740602922260,1.5838,136.1,135.93,219.2]
[1740602922261,0.14216157,136.07,135.93,136.8]
[1740602922455,0.14216157,136.05,135.93,136.8]
[1740602923679,0.42648471,136.05,135.91,270.94]
[1740602924856,0.42648471,136.05,135.91,271.003]
[1740602926258,6.3146,136.08,135.92,1.54472031]
[1740602926486,6.3146,136.08,135.92,220.74472031]
[1740602926688,6.3146,136.08,135.92,219.2]
[1740602928457,6.3146,136.08,135.93,4.13369654]
[1740602928862,6.3146,136.08,135.93,140.93369654]
[1740602928863,0.14216157,136.07,135.93,140.93369654]
[1740602929864,0.14216157,136.07,135.93,136.8]
[1740602931082,0.14216157,136.07,135.93,146.96]
[1740602931591,16.4746,136.08,135.93,229.36]
[1740602931883,6.3146,136.08,135.93,229.36]
[1740602932074,6.3146,136.08,135.94,2.54411994]
[1740602932276,1.5838,136.1,135.94,221.74411994]
[1740602932475,1.5838,136.1,135.94,220.2]
[1740602932679,1.5838,136.1,135.95,1.5436769]
[1740602932887,1.5838,136.1,135.95,220.7436769]
[1740602933082,1.5838,136.1,135.95,223.34392091]
[1740602934581,1.5838,136.1,135.95,219.2]
[1740602935292,1.5838,136.1,135.96,1.54375687]
[1740602935788,0.14216157,136.08,135.96,136.8]
[1740602936372,0.42648471,136.06,135.96,136.8]
[1740602936667,0.42648471,136.04,135.96,136.8]
[1740602936979,0.42648471,136.02,135.91,136.863]
[1740602937281,0.42648471,136.0,135.91,136.863]
[1740602939168,3.61619903,135.94,135.91,136.863]
[1740602939378,3.78262259,136.01,135.91,219.263]
[1740602939568,1.6634,136.03,135.91,219.263]
[1740602939776,3.75414566,136.02,135.91,219.263]
[1740602940103,10.16,136.01,135.91,219.263]
[1740602940395,3.67463219,135.98,135.91,219.263]
[1740602940767,3.75414566,136.02,135.91,219.263]
[1740602942674,6.4616,136.05,135.92,1.54429084]
[1740602942999,11.7367,136.08,135.92,272.44519084]
[1740602943178,3.78464421,136.07,135.93,3.69627669]
[1740602943372,1.5767,136.08,135.94,1.54378489]
[1740602943599,1.5767,136.08,135.94,47.17378489]
[1740602943910,1.5767,136.08,135.94,220.74378489]
[1740602944080,1.5767,136.08,135.94,219.2]
[1740602944081,0.14216157,136.07,135.94,219.2]
[1740602944487,11.7367,136.08,135.94,219.2]
[1740602944700,11.7367,136.08,135.95,1.54376524]
[1740602944990,1.5767,136.08,135.95,275.53376524]
[1740602945190,1.5767,136.08,135.95,273.99]
[1740602945399,6.4175,136.1,135.96,1.54333848]
[1740602945783,6.4175,136.1,135.96,225.35723828]
[1740602946086,6.4175,136.1,135.97,124.06]
[1740602946505,0.42648471,136.09,135.97,134.22]
[1740602946700,0.42648471,136.09,135.97,353.42]
[1740602946905,0.42648471,136.09,135.97,343.26]
[1740602947687,0.28432314,136.09,135.97,343.26]
[1740602948690,0.28432314,136.09,135.97,343.06]
[1740602949206,0.14216157,136.09,135.97,343.06]
[1740602949712,6.4175,136.1,135.97,343.06]
[1740602950221,6.4175,136.1,135.98,1.54343182]
[1740602950407,0.03,136.1,135.99,22.31]
[1740602950610,0.03,136.1,136.0,1.54299065]
[1740602950800,0.03,136.1,136.0,3.62118864]
[1740602951107,0.03,136.09,136.01,1.54338503]
[1740602951406,0.03,136.09,136.02,10.16]
[1740602951789,0.03,136.09,136.03,22.31]
[1740602951988,0.03,136.09,136.04,1.54268432]
[1740602952190,0.03,136.09,136.04,243.05268432]
[1740602952498,0.03,136.09,136.04,219.2]
[1740602953610,0.14216157,136.07,136.02,136.8]
[1740602955012,0.14216157,136.07,135.99,219.2]
[1740602955921,0.42648471,136.07,135.99,219.2]
[1740602956825,0.42648471,136.07,135.97,136.8]
[1740602957750,0.42648471,136.07,135.97,219.2]
[1740602958451,0.28432314,136.05,135.97,219.2]
[1740602959714,18.3054,136.08,135.97,219.2]
[1740602961046,0.14216157,136.07,135.97,219.2]
[1740602961718,18.3054,136.08,135.97,219.2]
[1740602962140,0.14216157,136.07,135.97,219.2]
[1740602962328,8.1654,136.08,135.98,10.14]
[1740602962523,1.5301,136.08,135.99,1.54370865]
[1740602962726,0.03,136.09,135.99,220.74370865]
[1740602962943,0.03,136.09,135.99,286.14]
[1740602963161,0.03,136.09,135.99,263.83]
[1740602963731,0.03,136.09,136.0,124.06]
[1740602964047,0.03,136.09,136.01,5.27736278]
[1740602964222,0.03,136.09,136.01,9.93101704]
[1740602964431,0.03,136.09,136.01,4.65365426]
[1740602964855,0.14216157,136.08,136.01,4.65365426]
[1740602965037,0.03,136.09,136.01,4.65365426]
[1740602965243,0.17216157,136.09,136.01,223.85365426]
[1740602965594,0.28432314,136.08,136.01,219.2]
[1740602965937,0.14216157,136.07,136.01,219.2]
[1740602966454,0.14216157,136.06,136.01,219.2]
[1740602967044,0.03,136.09,136.0,136.8]
[1740602968263,0.03,136.09,136.0,219.2]
[1740602968764,0.03,136.09,136.0,136.8]
[1740602969449,1.5894,136.08,136.0,136.8]
[1740602969657,7.9544,136.08,135.97,219.263]
[1740602970547,0.28432314,136.07,135.97,82.463]
[1740602970868,0.28432314,136.07,135.97,0.063]
[1740602973168,0.14216157,136.06,135.97,0.063]
[1740602973366,0.42648471,136.04,135.97,0.063]
[1740602973771,0.42648471,136.02,135.91,136.863]
[1740602974266,0.42648471,136.02,135.91,0.063]
[1740602974662,0.14216157,135.98,135.91,0.063]
[1740602974858,0.14216157,135.96,135.9,0.063]
[1740602975072,0.14216157,135.94,135.89,0.063]
[1740602975448,3.95656144,135.94,135.83,137.7317107]
[1740602975773,0.14216157,135.92,135.83,220.1317107]
[1740602976268,6.0675,135.93,135.83,220.1317107]
[1740602976269,0.14216157,135.9,135.83,220.1317107]
[1740602977453,0.14216157,135.9,135.83,0.9317107]
[1740602978247,0.14216157,135.9,135.78,343.323]
[1740602978248,0.42648471,135.9,135.78,343.323]
[1740602978459,0.28432314,135.88,135.78,219.263]
[1740602979164,0.28432314,135.88,135.78,136.863]
[1740602979372,0.28432314,135.83,135.78,136.863]
[1740602979551,6.1386,135.82,135.73,136.8]
[1740602979748,0.28432314,135.79,135.7,190.72794115]
[1740602979948,0.28432314,135.77,135.69,0.063]
[1740602982180,0.14216157,135.76,135.69,0.063]
[1740602983173,0.14216157,135.74,135.69,0.063]
[1740602983575,0.14216157,135.74,135.68,0.063]
[1740602985663,0.14216157,135.72,135.62,0.8687107]
[1740602985863,0.14216157,135.7,135.62,0.8687107]
[1740602988464,0.14216157,135.7,135.62,137.6687107]
[1740602988671,10.9811,135.73,135.62,137.6687107]
[1740602988862,0.14216157,135.72,135.62,137.6687107]
[1740602989062,10.9811,135.73,135.62,137.6687107]
[1740602989258,10.4811,135.73,135.62,137.6987107]
[1740602989476,0.14216157,135.72,135.62,137.6987107]
[1740602990960,6.2117,135.75,135.62,220.0987107]
[1740602991577,0.14216157,135.74,135.62,220.0987107]
[1740602991776,6.2117,135.75,135.62,220.0987107]
[1740602992378,6.2117,135.75,135.63,1.5473603]
[1740602992565,11.719,135.79,135.64,10.14]
[1740602992761,1.579,135.79,135.65,1.54708995]
[1740602992967,0.14216157,135.78,135.65,1.54708995]
[1740602993167,1.579,135.79,135.65,1.54708995]
[1740602993566,0.14216157,135.78,135.65,1.54708995]
[1740602993767,1.579,135.79,135.65,1.54708995]
[1740602994167,0.14216157,135.78,135.65,1.54708995]
[1740602995185,0.14216157,135.78,135.64,229.34]
[1740602996362,6.84287071,135.78,135.64,229.34]
[1740602996559,6.70070914,135.77,135.63,261.12]
[1740602996770,10.14,135.76,135.63,343.52]
[1740602998476,10.14,135.76,135.62,137.6987107]
[1740602998477,6.1251,135.75,135.62,137.6987107]
[1740602999091,12.82580914,135.75,135.62,137.6987107]
[1740602999787,12.82580914,135.75,135.62,0.8987107]
[1740602999980,8.32810914,135.74,135.58,136.863]
[1740603000284,0.14216157,135.73,135.58,220.81151326]
[1740603000467,0.14216157,135.73,135.58,219.263]
[1740603000869,0.14216157,135.73,135.59,1.54850244]
[1740603001069,1.6274,135.74,135.62,0.03]
[1740603001070,82.9,135.72,135.62,0.03]
[1740603001269,82.9,135.71,135.62,0.03]
[1740603001486,93.04,135.7,135.62,0.03]
[1740603001770,1.6117,135.68,135.58,0.063]
[1740603001965,6.465,135.66,135.51,0.8687107]
[1740603002193,90.95325282,135.65,135.51,0.8687107]
[1740603002485,0.2781,135.63,135.51,0.8687107]
[1740603002690,89.4334,135.62,135.51,0.8687107]
[1740603002889,93.24285068,135.62,135.51,220.0687107]
[1740603003109,82.9,135.61,135.51,0.8687107]
[1740603003476,84.5192,135.6,135.42,219.2]
[1740603003802,84.5192,135.6,135.41,11.8554976]
[1740603003803,0.14216157,135.58,135.41,11.8554976]
[1740603004008,0.14216157,135.54,135.41,0.8687107]
[1740603004176,0.14216157,135.52,135.41,0.8687107]
[1740603004372,0.14216157,135.5,135.41,0.8687107]
[1740603005110,0.42648471,135.52,135.41,137.6687107]
[1740603005310,0.14216157,135.52,135.41,137.6687107]
[1740603005634,6.0512,135.58,135.43,1.0]
[1740603005898,6.0512,135.58,135.44,11.68949218]
[1740603006195,3.80945068,135.62,135.47,1.2202]
[1740603006493,10.14,135.63,135.48,1.54898454]
[1740603006795,13.93150727,135.63,135.48,220.74898454]
[1740603007016,6.0512,135.64,135.49,1.511]
[1740603007311,6.0512,135.64,135.49,136.8]
[1740603007312,0.28432314,135.62,135.49,136.8]
[1740603007794,0.14216157,135.61,135.49,136.8]
[1740603007994,0.14216157,135.59,135.43,10.14]
[1740603008196,0.14216157,135.59,135.43,146.94]
[1740603008799,0.14216157,135.59,135.43,229.34]
[1740603009401,0.14216157,135.59,135.43,219.2]
[1740603009721,0.14216157,135.59,135.42,261.2]
[1740603010123,6.0085,135.57,135.41,137.6687107]
[1740603010312,10.14,135.56,135.41,137.6687107]
[1740603010919,10.14,135.56,135.41,0.8687107]
[1740603011122,10.14,135.56,135.41,221.61871366]
[1740603011317,6.0085,135.57,135.41,221.61871366]
[1740603011318,6.0085,135.57,135.43,1.0]
[1740603011528,6.0085,135.57,135.45,1.0]
[1740603011728,6.0085,135.57,135.46,1.54912831]
[1740603011932,6.0085,135.57,135.46,220.74912831]
[1740603012220,6.0085,135.57,135.46,219.2]
[1740603012427,6.3284,135.62,135.46,220.4202]
[1740603012622,6.3284,135.62,135.47,1.0]
[1740603012923,0.14216157,135.61,135.47,219.2]
[1740603013138,0.14216157,135.59,135.47,219.2]
[1740603013503,0.42648471,135.59,135.45,261.28]
[1740603014110,0.42648471,135.59,135.45,343.68]
[1740603015011,10.14,135.6,135.45,343.68]
[1740603015212,10.14,135.6,135.46,1.54936216]
[1740603015421,0.42648471,135.59,135.45,343.68]
[1740603015709,0.28432314,135.59,135.46,1.54938712]
[1740603015907,10.14,135.6,135.46,1.54938712]
[1740603016212,10.14,135.6,135.46,1.54943728]
[1740603016431,6.3914,135.62,135.5,1.0]
[1740603016612,0.063,135.62,135.51,12.6886868]
[1740603017140,0.063,135.62,135.53,1.0]
[1740603017351,0.063,135.62,135.54,1.54820487]
[1740603017829,0.063,135.62,135.54,219.2]
[1740603019212,0.063,135.62,135.51,92.54]
[1740603019417,0.063,135.62,135.51,229.34]
[1740603020312,0.063,135.62,135.51,219.2]
[1740603021314,0.063,135.62,135.52,2.54893725]
[1740603021521,0.063,135.62,135.52,1.54893725]
[1740603021724,0.063,135.62,135.52,219.2]
[1740603022321,1.5924,135.61,135.47,343.68]
[1740603022509,6.5601,135.6,135.47,219.2]
[1740603022714,6.5601,135.6,135.43,229.34]
[1740603022923,82.9,135.59,135.43,219.2]
[1740603023128,10.28216157,135.58,135.43,219.2]
[1740603023323,0.14216157,135.56,135.41,0.8987107]
[1740603023529,0.14216157,135.54,135.41,137.6987107]
[1740603024525,1.5961,135.55,135.41,220.0987107]
[1740603024719,1.5961,135.55,135.42,1.55040184]
[1740603025223,0.14216157,135.54,135.42,1.55040184]
[1740603025541,0.14216157,135.54,135.5,0.03]
[1740603025729,0.14216157,135.54,135.42,220.75040184]
[1740603025931,0.14216157,135.54,135.41,137.6987107]
[1740603026140,1.5961,135.55,135.42,6.81593292]
[1740603026141,0.42648471,135.52,135.42,6.81593292]
[1740603026337,6.3672,135.53,135.42,6.81593292]
[1740603026338,0.42648471,135.5,135.42,6.81593292]
[1740603027135,0.42648471,135.5,135.42,3.61833292]
[1740603027445,0.28432314,135.48,135.42,3.23553292]
[1740603027746,0.28432314,135.48,135.41,0.8987107]
[1740603030747,0.14216157,135.47,135.41,0.8987107]
[1740603033646,0.28432314,135.48,135.41,0.8987107]
[1740603033647,6.0422,135.49,135.41,137.6987107]
[1740603034347,6.0422,135.49,135.41,0.8987107]
[1740603034545,6.0422,135.49,135.41,137.6987107]
[1740603035366,11.123,135.53,135.41,137.6987107]
[1740603035542,11.123,135.53,135.41,220.0987107]
[1740603035856,0.14216157,135.52,135.41,220.0987107]
[1740603036063,0.14216157,135.52,135.41,0.8987107]
[1740603036439,6.84287071,135.52,135.41,0.8987107]
[1740603037556,0.14216157,135.52,135.41,0.8987107]
[1740603037854,0.983,135.53,135.41,137.6987107]
[1740603038153,11.103,135.53,135.41,137.6987107]
[1740603038341,10.12,135.53,135.41,221.64863314]
[1740603038545,10.12,135.53,135.41,220.0987107]
[1740603038941,0.14216157,135.52,135.42,1.55010631]
[1740603039145,10.12,135.53,135.42,1.55010631]
[1740603039341,10.12,135.53,135.41,220.0987107]
[1740603039547,0.14216157,135.52,135.41,220.0987107]
[1740603042255,6.387,135.54,135.41,220.0987107]
[1740603042461,6.387,135.54,135.42,11.66985607]
[1740603042647,6.387,135.54,135.42,232.60615607]
[1740603042842,16.4905,135.59,135.44,0.2202]
[1740603043050,6.3705,135.59,135.46,0.2202]
[1740603043254,6.3705,135.59,135.47,1.54889517]
[1740603043448,6.3705,135.59,135.48,10.12]
[1740603043960,6.3705,135.59,135.48,229.32]
[1740603044365,0.14216157,135.58,135.48,229.32]
[1740603044656,6.3705,135.59,135.48,229.32]
[1740603045037,0.14216157,135.58,135.48,229.32]
[1740603045761,0.14216157,135.58,135.48,219.2]
[1740603046369,0.28432314,135.54,135.48,219.2]
[1740603046580,0.14216157,135.53,135.48,219.2]
[1740603046864,6.3705,135.59,135.49,1.54924324]
[1740603047066,6.3705,135.59,135.49,220.74924324]
[1740603047243,6.3705,135.59,135.49,219.2]
[1740603047658,0.42648471,135.58,135.49,219.2]
[1740603048447,0.063,135.59,135.5,1.54947385]
[1740603048664,0.063,135.59,135.52,1.531]
[1740603048844,0.063,135.59,135.53,1.54859334]
[1740603049041,0.063,135.59,135.53,220.96879334]
[1740603049249,0.063,135.59,135.53,219.2]
[1740603050347,0.063,135.59,135.54,1.54844867]
[1740603050648,0.063,135.59,135.54,220.96864867]
[1740603050852,0.063,135.59,135.55,1.2202]
[1740603051055,0.063,135.59,135.56,1.768127]
[1740603051262,0.063,135.59,135.58,0.2202]
[1740603051576,0.063,135.61,135.58,220.747614]
[1740603051747,0.063,135.61,135.59,1.54774491]
[1740603052560,0.063,135.61,135.59,219.2]
[1740603053139,0.063,135.61,135.57,136.8]
[1740603054345,0.063,135.61,135.58,1.54811913]
[1740603054548,0.063,135.61,135.6,0.2202]
[1740603054745,0.063,135.72,135.61,139.556]
[1740603054940,0.063,135.72,135.63,1.2202]
[1740603055166,0.063,135.72,135.64,12.86715437]
[1740603055358,0.063,135.72,135.66,1.2202]
[1740603055554,0.063,135.72,135.67,1.76686647]
[1740603055766,0.063,135.72,135.7,0.2202]
[1740603055967,0.063,135.72,135.71,1.54625913]
[1740603056769,0.063,135.72,135.7,229.3]
[1740603057068,0.063,135.72,135.71,1.5467618]
[1740603057242,0.063,135.72,135.71,220.7467618]
[1740603057447,0.063,135.72,135.71,219.2]
[1740603061085,0.063,135.72,135.71,220.7094]
[1740603061257,0.063,135.75,135.72,0.2202]
[1740603061464,0.063,135.75,135.72,219.137]
[1740603061649,0.063,135.75,135.73,1.54647996]
[1740603061849,0.063,135.75,135.73,220.68347996]
[1740603062159,0.063,135.75,135.73,219.137]
[1740603062365,0.063,135.75,135.74,1.54603]
[1740603062565,0.063,135.75,135.74,219.137]
[1740603064863,0.063,135.75,135.71,219.137]
[1740603065280,0.063,135.75,135.72,1.54708231]
[1740603065469,0.063,135.75,135.72,220.68408231]
[1740603065694,0.063,135.75,135.72,219.137]
[1740603066053,0.063,135.75,135.73,1.54642739]
[1740603066957,0.063,135.75,135.73,220.68342739]
[1740603067160,0.063,135.75,135.73,219.137]
[1740603068587,0.063,135.75,135.74,1.54630639]
[1740603069393,0.063,135.75,135.73,219.137]
[1740603070186,0.063,135.75,135.73,82.4]
[1740603070361,0.063,135.75,135.73,219.2]
[1740603070562,0.063,135.75,135.73,136.8]
[1740603071080,0.063,135.75,135.74,1.54643797]
[1740603071267,0.063,135.75,135.74,220.74643797]
[1740603071472,0.063,135.75,135.74,219.2]
[1740603072588,0.8687107,135.78,135.75,136.737]
[1740603072888,0.8687107,135.78,135.76,13.1675143]
[1740603073267,0.8687107,135.78,135.76,232.3045143]
[1740603073458,0.8687107,135.78,135.76,229.217]
[1740603073666,0.8687107,135.78,135.76,219.137]
[1740603073878,0.8687107,135.78,135.72,219.167]
[1740603077782,0.8687107,135.78,135.73,1.54647329]
[1740603077987,0.8687107,135.78,135.74,10.08]
[1740603078198,0.8687107,135.78,135.74,11.62601996]
[1740603078384,0.8687107,135.78,135.74,229.217]
[1740603078596,0.42648471,135.77,135.74,92.48]
[1740603078886,0.8687107,135.78,135.74,229.28]
[1740603079088,0.8687107,135.78,135.75,1.54679647]
[1740603079272,0.8687107,135.78,135.75,220.74679647]
[1740603079467,0.8687107,135.78,135.75,219.2]
[1740603080073,0.8687107,135.78,135.76,1.54634024]
[1740603080276,0.8687107,135.78,135.76,221.74634024]
[1740603080476,0.8687107,135.78,135.76,220.2]
[1740603080678,0.8687107,135.78,135.77,1.54562597]
[1740603080893,0.3687107,135.78,135.77,1.54562597]
[1740603081786,4.56012977,135.9,135.77,221.74562597]
[1740603082090,10.06,135.94,135.78,1.2202]
[1740603082387,7.5908,135.95,135.81,0.2202]
[1740603082594,12.04592078,135.95,135.82,12.60482994]
[1740603082790,12.04592078,135.95,135.82,230.80482994]
[1740603082991,12.04592078,135.95,135.82,219.2]
[1740603083773,0.14216157,135.87,135.82,219.2]
[1740603084194,0.14216157,135.87,135.78,219.2]
[1740603084692,0.14216157,135.84,135.78,219.2]
[1740603085075,0.14216157,135.84,135.75,146.86]
[1740603085386,0.14216157,135.84,135.75,136.8]
[1740603085895,0.42648471,135.84,135.75,136.8]
[1740603086471,0.42648471,135.84,135.74,261.04]
[1740603087298,0.14216157,135.84,135.74,343.44]
[1740603087492,6.412,135.85,135.75,1.54635994]
[1740603087795,0.063,135.87,135.76,1.0]
[1740603087975,0.063,135.87,135.77,1.54552101]
[1740603090680,0.20516157,135.87,135.75,235.752]
[1740603090975,0.063,135.87,135.78,2.5289]
[1740603091275,0.063,135.87,135.79,1.5452071]
[1740603091476,0.063,135.87,135.79,220.7452071]
[1740603091684,0.20516157,135.87,135.79,219.2]
[1740603091902,0.063,135.87,135.79,219.2]
[1740603092095,0.20516157,135.87,135.79,219.2]
[1740603094097,0.20516157,135.87,135.79,229.26]
[1740603094489,0.20516157,135.87,135.8,1.54571417]
[1740603094686,0.063,135.87,135.8,220.74571417]
[1740603095002,0.063,135.87,135.8,219.2]
[1740603095219,0.063,135.87,135.81,1.54525917]
[1740603095390,0.063,135.87,135.81,220.74525917]
[1740603095585,0.063,135.87,135.81,219.2]
[1740603095996,0.063,135.87,135.82,1.54508382]
[1740603096601,0.063,135.87,135.82,220.74508382]
[1740603096907,0.20516157,135.87,135.82,219.2]
[1740603097480,0.063,135.87,135.84,1.0]
[1740603097780,0.063,135.87,135.85,12.5846085]
[1740603098002,0.063,135.87,135.85,230.7846085]
[1740603098184,0.063,135.87,135.85,229.24]
[1740603098797,0.063,135.87,135.86,137.737]
[1740603099087,0.063,135.87,135.86,219.137]
[1740603099493,0.063,135.87,135.86,241.347]
[1740603099703,0.8687107,135.88,135.86,242.5672]
[1740603099908,0.8687107,135.88,135.87,1.54418479]
[1740603100101,0.8687107,135.88,135.87,244.11138479]
[1740603100288,0.8687107,135.88,135.87,242.5672]
[1740603100487,0.8687107,135.88,135.87,242.347]
[1740603100805,0.8687107,135.88,135.87,229.177]
[1740603102407,1.0,135.95,135.87,229.177]
[1740603102707,1.0,135.95,135.88,1.54447986]
[1740603104810,1.0,135.95,135.88,220.68147986]
[1740603104988,1.0,135.95,135.88,219.137]
[1740603105191,0.42648471,135.94,135.88,219.137]
[1740603105505,1.0,135.95,135.88,219.137]
[1740603106918,6.74096157,135.94,135.88,219.137]
[1740603107297,6.5988,135.94,135.88,219.137]
[1740603107819,0.14216157,135.93,135.88,219.137]
[1740603109816,1.03,135.95,135.88,219.137]
[1740603110810,1.03,135.95,135.85,260.917]
[1740603111732,11.07,135.95,135.85,260.917]
[1740603112628,11.07,135.95,135.83,136.737]
[1740603112823,0.14216157,135.94,135.83,136.737]
[1740603113215,8.2108,135.93,135.83,136.737]
[1740603114394,8.2108,135.93,135.83,219.137]
[1740603114915,8.2108,135.93,135.83,229.177]
[1740603114916,6.6073,135.93,135.83,229.177]
[1740603115532,6.6073,135.93,135.84,1.54511771]
[1740603115827,6.6073,135.93,135.84,220.68211771]
[1740603116029,6.6073,135.93,135.84,219.137]
[1740603116913,0.42648471,135.92,135.84,219.137]
[1740603119825,6.6073,135.93,135.84,219.137]
[1740603120031,1.03,135.95,135.85,1.54516387]
[1740603120221,1.03,135.95,135.85,220.68216387]
[1740603120422,0.28432314,135.94,135.85,219.137]
[1740603120757,1.03,135.95,135.86,1.54512569]
[1740603120916,1.03,135.95,135.86,222.33572569]
[1740603121121,1.03,135.95,135.86,222.0108]
[1740603121337,0.03,135.93,135.86,220.7906]